Workbook

Sheet importar
A1: Renglon1 | B1: SumaDeBaseCredito | C1: Renglon2 | D1: SumaDeRetencionCredito | E1: Renglon3 | F1: BaseCredito2 | G1: Renglon4 | H1: RetencionCredito2

Sheet Datos Básicos
B2: FORMULARIO 350 AÑO GRAVABLE 2025
B3: Nuevo formulario 350 para retenciones y autorretenciones en la fuente expedido por la Dian
B4: D A T O S B Á S I C O S
B6: D A T O S D E L D E C L A R A N T E
B8: Periodo | E8: Agosto
B11: NIT o cédula
B13: Dígito de Verificación (DV) | E13: =IF((MOD((VALUE(MID(TEXT(E11,"000000000000000"),15,1))*3+VALUE(MID(TEXT(E11,"000000000000000"),14,1))*7+VALUE(MID(TEXT(E11,"000000000000000"),13,1))*13+VALUE(MID(TEXT(E11,"000000000000000"),12,1))*17+VALUE(MID(TEXT(E11,"000000000000000"),11,1))*19+VALUE(MID(TEXT(E11,"000000000000000"),10,1))*23+VALUE(MID(TEXT(E11,"000000000000000"),9,1))*29+VALUE(MID(TEXT(E11,"000000000000000"),8,1))*37+VALUE(MID(TEXT(E11,"000000000000000"),7,1))*41+VALUE(MID(TEXT(E11,"000000000000000"),6,1))*43+VALUE(MID(TEXT(E11,"000000000000000"),5,1))*47+VALUE(MID(TEXT(E11,"000000000000000"),4,1))*53+VALUE(MID(TEXT(E11,"000000000000000"),3,1))*59+VALUE(MID(TEXT(E11,"000000000000000"),2,1))*67+VALUE(MID(TEXT(E11,"000000000000000"),1,1))*71),11))=0,0,IF((MOD((VALUE(MID(TEXT(E11,"000000000000000"),15,1))*3+VALUE(MID(TEXT(E11,"000000000000000"),14,1))*7+VALUE(MID(TEXT(E11,"000000000000000"),13,1))*13+VALUE(MID(TEXT(E11,"000000000000000"),12,1))*17+VALUE(MID(TEXT(E11,"000000000000000"),11,1))*19+VALUE(MID(TEXT(E11,"000000000000000"),10,1))*23+VALUE(MID(TEXT(E11,"000000000000000"),9,1))*29+VALUE(MID(TEXT(E11,"000000000000000"),8,1))*37+VALUE(MID(TEXT(E11,"000000000000000"),7,1))*41+VALUE(MID(TEXT(E11,"000000000000000"),6,1))*43+VALUE(MID(TEXT(E11,"000000000000000"),5,1))*47+VALUE(MID(TEXT(E11,"000000000000000"),4,1))*53+VALUE(MID(TEXT(E11,"000000000000000"),3,1))*59+VALUE(MID(TEXT(E11,"000000000000000"),2,1))*67+VALUE(MID(TEXT(E11,"000000000000000"),1,1))*71),11))=1,1,11-(MOD((VALUE(MID(TEXT(E11,"000000000000000"),15,1))*3+VALUE(MID(TEXT(E11,"000000000000000"),14,1))*7+VALUE(MID(TEXT(E11,"000000000000000"),13,1))*13+VALUE(MID(TEXT(E11,"000000000000000"),12,1))*17+VALUE(MID(TEXT(E11,"000000000000000"),11,1))*19+VALUE(MID(TEXT(E11,"000000000000000"),10,1))*23+VALUE(MID(TEXT(E11,"000000000000000"),9,1))*29+VALUE(MID(TEXT(E11,"000000000000000"),8,1))*37+VALUE(MID(TEXT(E11,"000000000000000"),7,1))*41+VALUE(MID(TEXT(E11,"000000000000000"),6,1))*43+VALUE(MID(TEXT(E11,"000000000000000"),5,1))*47+VALUE(MID(TEXT(E11,"000000000000000"),4,1))*53+VALUE(MID(TEXT(E11,"000000000000000"),3,1))*59+VALUE(MID(TEXT(E11,"000000000000000"),2,1))*67+VALUE(MID(TEXT(E11,"000000000000000"),1,1))*71),11)))) -> 0
B15: Primer apellido
B17: Segundo apellido
B19: Primer nombre
B21: Otros nombres
B24: Razón social
B26: Código actividad económica
B28: Código dirección seccional

Sheet Formulario 350
L2: Declaración Retenciones en la Fuente | AQ2: Privada
B5: 1. Año | E5: 2 | F5: 0 | G5: 2 | H5: 4 | U5: 3. Período | X5: =IFERROR(MID(VLOOKUP('Datos Básicos'!E8,[24]Listas!F751:G762,2,FALSE),1,1),0) -> 0 | Y5: =IFERROR(MID(VLOOKUP('Datos Básicos'!E8,[24]Listas!F751:G762,2,FALSE),2,1),0) -> 8
B6: Espacio reservado para la DIAN | AB6: 4. Número de Formulario
B11: Datos del declarante | C11: 5. Número de Identificación Tributaria (NIT) | Q11: 6. DV | R11: 7. Primer apellido | AA11: 8. Segundo apellido | AK11: 9. Primer nombre | AT11: 10. Otros nombres
C12: =+'Datos Básicos'!E11 -> 0 | Q12: =+'Datos Básicos'!E13 -> 0 | R12: =+'Datos Básicos'!E15 -> 0 | AA12: =+'Datos Básicos'!E17 -> 0 | AK12: =+'Datos Básicos'!E19 -> 0 | AT12: =+'Datos Básicos'!E21 -> 0
C14: 11. Razón Social | AZ14: 12. Cód. Dirección Seccional.
C15: =+'Datos Básicos'!E24 -> 0 | AZ15: =+'Datos Básicos'!E28 -> 0
B16: Si es una corrección Indique: | J16: 25. Cód. | P16: 26. No. Formulario anterior | AC16: 27. Autorretenedores personas jurídicas exonerados de aportes (Art. 114-1 E.T.). Actividad económica principal. | AR16: =+'Datos Básicos'!E26 -> 0000 | AX16: 28.Tarifa | BA16: =IFERROR(VLOOKUP(AR16,[24]Listas!F:H,3,0)," ") -> 
B17: Concepto | P17: A personas jurídicas | AJ17: A personas naturales
P18: Base sujeta a retención para pagos o abonos en cuenta | Z18: Retenciones a título de renta | AJ18: Base sujeta a retención para pagos o abonos en cuenta | AT18: Retenciones a título de renta
B19: Rentas de trabajo | AJ19: =Z45+1 -> 77 | AK19: =ROUND(IF(AJ19<>"",IFERROR(VLOOKUP(AJ19,importar!$E$2:'importar'!$F$100,2,FALSE),0),0),-3) -> 0 | AT19: =AJ34+1 -> 93 | AU19: =ROUND(IF(AT19<>"",IFERROR(VLOOKUP(AT19,importar!$G$2:'importar'!$H$100,2,FALSE),0),0),-3) -> 0
B20: Rentas de pensiones | AJ20: =AJ19+1 -> 78 | AK20: =ROUND(IF(AJ20<>"",IFERROR(VLOOKUP(AJ20,importar!$E$2:'importar'!$F$100,2,FALSE),0),0),-3) -> 0 | AT20: =AT19+1 -> 94 | AU20: =ROUND(IF(AT20<>"",IFERROR(VLOOKUP(AT20,importar!$G$2:'importar'!$H$100,2,FALSE),0),0),-3) -> 0
B21: Honorarios | P21: 29 | Q21: =ROUND(IF(P21<>"",IFERROR(VLOOKUP(P21,importar!$A$2:'importar'!$B$100,2,FALSE),0),0),-3) -> 0 | Z21: =P34+1 -> 42 | AA21: =ROUND(IF(Z21<>"",IFERROR(VLOOKUP(Z21,importar!$C$2:'importar'!$D$100,2,FALSE),0),0),-3) -> 0 | AJ21: 79 | AK21: =ROUND(IF(AJ21<>"",IFERROR(VLOOKUP(AJ21,importar!$E$2:'importar'!$F$100,2,FALSE),0),0),-3) -> 0 | AT21: 95 | AU21: =ROUND(IF(AT21<>"",IFERROR(VLOOKUP(AT21,importar!$G$2:'importar'!$H$100,2,FALSE),0),0),-3) -> 0
B22: Comisiones | P22: =P21+1 -> 30 | Q22: =ROUND(IF(P22<>"",IFERROR(VLOOKUP(P22,importar!$A$2:'importar'!$B$100,2,FALSE),0),0),-3) -> 0 | Z22: =Z21+1 -> 43 | AA22: =ROUND(IF(Z22<>"",IFERROR(VLOOKUP(Z22,importar!$C$2:'importar'!$D$100,2,FALSE),0),0),-3) -> 0 | AJ22: 80 | AK22: =ROUND(IF(AJ22<>"",IFERROR(VLOOKUP(AJ22,importar!$E$2:'importar'!$F$100,2,FALSE),0),0),-3) -> 0 | AT22: 96 | AU22: =ROUND(IF(AT22<>"",IFERROR(VLOOKUP(AT22,importar!$G$2:'importar'!$H$100,2,FALSE),0),0),-3) -> 0
B23: Servicios | P23: 31 | Q23: =ROUND(IF(P23<>"",IFERROR(VLOOKUP(P23,importar!$A$2:'importar'!$B$100,2,FALSE),0),0),-3) -> 0 | Z23: 44 | AA23: =ROUND(IF(Z23<>"",IFERROR(VLOOKUP(Z23,importar!$C$2:'importar'!$D$100,2,FALSE),0),0),-3) -> 0 | AJ23: 81 | AK23: =ROUND(IF(AJ23<>"",IFERROR(VLOOKUP(AJ23,importar!$E$2:'importar'!$F$100,2,FALSE),0),0),-3) -> 0 | AT23: 97 | AU23: =ROUND(IF(AT23<>"",IFERROR(VLOOKUP(AT23,importar!$G$2:'importar'!$H$100,2,FALSE),0),0),-3) -> 0
B24: Rendimientos financieros e intereses | P24: 32 | Q24: =ROUND(IF(P24<>"",IFERROR(VLOOKUP(P24,importar!$A$2:'importar'!$B$100,2,FALSE),0),0),-3) -> 0 | Z24: 45 | AA24: =ROUND(IF(Z24<>"",IFERROR(VLOOKUP(Z24,importar!$C$2:'importar'!$D$100,2,FALSE),0),0),-3) -> 0 | AJ24: 82 | AK24: =ROUND(IF(AJ24<>"",IFERROR(VLOOKUP(AJ24,importar!$E$2:'importar'!$F$100,2,FALSE),0),0),-3) -> 0 | AT24: 98 | AU24: =ROUND(IF(AT24<>"",IFERROR(VLOOKUP(AT24,importar!$G$2:'importar'!$H$100,2,FALSE),0),0),-3) -> 0
B25: Arrendamientos (Muebles e inmuebles) | P25: 33 | Q25: =ROUND(IF(P25<>"",IFERROR(VLOOKUP(P25,importar!$A$2:'importar'!$B$100,2,FALSE),0),0),-3) -> 0 | Z25: 46 | AA25: =ROUND(IF(Z25<>"",IFERROR(VLOOKUP(Z25,importar!$C$2:'importar'!$D$100,2,FALSE),0),0),-3) -> 0 | AJ25: 83 | AK25: =ROUND(IF(AJ25<>"",IFERROR(VLOOKUP(AJ25,importar!$E$2:'importar'!$F$100,2,FALSE),0),0),-3) -> 0 | AT25: 99 | AU25: =ROUND(IF(AT25<>"",IFERROR(VLOOKUP(AT25,importar!$G$2:'importar'!$H$100,2,FALSE),0),0),-3) -> 0
B26: Regalias y explotación de la propiedad intelectual | P26: 34 | Q26: =ROUND(IF(P26<>"",IFERROR(VLOOKUP(P26,importar!$A$2:'importar'!$B$100,2,FALSE),0),0),-3) -> 0 | Z26: 47 | AA26: =ROUND(IF(Z26<>"",IFERROR(VLOOKUP(Z26,importar!$C$2:'importar'!$D$100,2,FALSE),0),0),-3) -> 0 | AJ26: 84 | AK26: =ROUND(IF(AJ26<>"",IFERROR(VLOOKUP(AJ26,importar!$E$2:'importar'!$F$100,2,FALSE),0),0),-3) -> 0 | AT26: 100 | AU26: =ROUND(IF(AT26<>"",IFERROR(VLOOKUP(AT26,importar!$G$2:'importar'!$H$100,2,FALSE),0),0),-3) -> 0
B27: Dividendos y participaciones | P27: 35 | Q27: =ROUND(IF(P27<>"",IFERROR(VLOOKUP(P27,importar!$A$2:'importar'!$B$100,2,FALSE),0),0),-3) -> 0 | Z27: 48 | AA27: =ROUND(IF(Z27<>"",IFERROR(VLOOKUP(Z27,importar!$C$2:'importar'!$D$100,2,FALSE),0),0),-3) -> 0 | AJ27: 85 | AK27: =ROUND(IF(AJ27<>"",IFERROR(VLOOKUP(AJ27,importar!$E$2:'importar'!$F$100,2,FALSE),0),0),-3) -> 0 | AT27: 101 | AU27: =ROUND(IF(AT27<>"",IFERROR(VLOOKUP(AT27,importar!$G$2:'importar'!$H$100,2,FALSE),0),0),-3) -> 0
B28: Compras | P28: 36 | Q28: =ROUND(IF(P28<>"",IFERROR(VLOOKUP(P28,importar!$A$2:'importar'!$B$100,2,FALSE),0),0),-3) -> 0 | Z28: 49 | AA28: =ROUND(IF(Z28<>"",IFERROR(VLOOKUP(Z28,importar!$C$2:'importar'!$D$100,2,FALSE),0),0),-3) -> 0 | AJ28: 86 | AK28: =ROUND(IF(AJ28<>"",IFERROR(VLOOKUP(AJ28,importar!$E$2:'importar'!$F$100,2,FALSE),0),0),-3) -> 0 | AT28: 102 | AU28: =ROUND(IF(AT28<>"",IFERROR(VLOOKUP(AT28,importar!$G$2:'importar'!$H$100,2,FALSE),0),0),-3) -> 0
B29: Transacciones con tarjetas débito y crédito | P29: 37 | Q29: =ROUND(IF(P29<>"",IFERROR(VLOOKUP(P29,importar!$A$2:'importar'!$B$100,2,FALSE),0),0),-3) -> 0 | Z29: 50 | AA29: =ROUND(IF(Z29<>"",IFERROR(VLOOKUP(Z29,importar!$C$2:'importar'!$D$100,2,FALSE),0),0),-3) -> 0 | AJ29: 87 | AK29: =ROUND(IF(AJ29<>"",IFERROR(VLOOKUP(AJ29,importar!$E$2:'importar'!$F$100,2,FALSE),0),0),-3) -> 0 | AT29: 103 | AU29: =ROUND(IF(AT29<>"",IFERROR(VLOOKUP(AT29,importar!$G$2:'importar'!$H$100,2,FALSE),0),0),-3) -> 0
B30: Contratos de construcción | P30: 38 | Q30: =ROUND(IF(P30<>"",IFERROR(VLOOKUP(P30,importar!$A$2:'importar'!$B$100,2,FALSE),0),0),-3) -> 0 | Z30: 51 | AA30: =ROUND(IF(Z30<>"",IFERROR(VLOOKUP(Z30,importar!$C$2:'importar'!$D$100,2,FALSE),0),0),-3) -> 0 | AJ30: 88 | AK30: =ROUND(IF(AJ30<>"",IFERROR(VLOOKUP(AJ30,importar!$E$2:'importar'!$F$100,2,FALSE),0),0),-3) -> 0 | AT30: 104 | AU30: =ROUND(IF(AT30<>"",IFERROR(VLOOKUP(AT30,importar!$G$2:'importar'!$H$100,2,FALSE),0),0),-3) -> 0
B31: Enajenación de activos fijos de personas naturales ante notarios y autoridades de tránsito | AJ31: 89 | AK31: =ROUND(IF(AJ31<>"",IFERROR(VLOOKUP(AJ31,importar!$E$2:'importar'!$F$100,2,FALSE),0),0),-3) -> 0 | AT31: 105 | AU31: =ROUND(IF(AT31<>"",IFERROR(VLOOKUP(AT31,importar!$G$2:'importar'!$H$100,2,FALSE),0),0),-3) -> 0
B32: Loterías, rifas apuestas y similares | P32: =P30+1 -> 39 | Q32: =ROUND(IF(P32<>"",IFERROR(VLOOKUP(P32,importar!$A$2:'importar'!$B$100,2,FALSE),0),0),-3) -> 0 | Z32: =Z30+1 -> 52 | AA32: =ROUND(IF(Z32<>"",IFERROR(VLOOKUP(Z32,importar!$C$2:'importar'!$D$100,2,FALSE),0),0),-3) -> 0 | AJ32: 90 | AK32: =ROUND(IF(AJ32<>"",IFERROR(VLOOKUP(AJ32,importar!$E$2:'importar'!$F$100,2,FALSE),0),0),-3) -> 0 | AT32: 106 | AU32: =ROUND(IF(AT32<>"",IFERROR(VLOOKUP(AT32,importar!$G$2:'importar'!$H$100,2,FALSE),0),0),-3) -> 0
B33: Hidrocarburos, carbón y demás productos mineros | P33: =P32+1 -> 40 | Q33: =ROUND(IF(P33<>"",IFERROR(VLOOKUP(P33,importar!$A$2:'importar'!$B$100,2,FALSE),0),0),-3) -> 0 | Z33: =Z32+1 -> 53 | AA33: =ROUND(IF(Z33<>"",IFERROR(VLOOKUP(Z33,importar!$C$2:'importar'!$D$100,2,FALSE),0),0),-3) -> 0 | AJ33: 91 | AK33: =ROUND(IF(AJ33<>"",IFERROR(VLOOKUP(AJ33,importar!$E$2:'importar'!$F$100,2,FALSE),0),0),-3) -> 0 | AT33: 107 | AU33: =ROUND(IF(AT33<>"",IFERROR(VLOOKUP(AT33,importar!$G$2:'importar'!$H$100,2,FALSE),0),0),-3) -> 0
B34: Otros pagos sujetos a retención | P34: =P33+1 -> 41 | Q34: =ROUND(IF(P34<>"",IFERROR(VLOOKUP(P34,importar!$A$2:'importar'!$B$100,2,FALSE),0),0),-3) -> 0 | Z34: =Z33+1 -> 54 | AA34: =ROUND(IF(Z34<>"",IFERROR(VLOOKUP(Z34,importar!$C$2:'importar'!$D$100,2,FALSE),0),0),-3) -> 0 | AJ34: 92 | AK34: =ROUND(IF(AJ34<>"",IFERROR(VLOOKUP(AJ34,importar!$E$2:'importar'!$F$100,2,FALSE),0),0),-3) -> 0 | AT34: 108 | AU34: =ROUND(IF(AT34<>"",IFERROR(VLOOKUP(AT34,importar!$G$2:'importar'!$H$100,2,FALSE),0),0),-3) -> 0
B35: Pagos al exterior | C35: Pagos o abonos en cuenta al exterior a países sin convenio | P35: =Z34+1 -> 55 | Q35: =ROUND(IF(P35<>"",IFERROR(VLOOKUP(P35,importar!$A$2:'importar'!$B$100,2,FALSE),0),0),-3) -> 0 | Z35: =P36+1 -> 57 | AA35: =ROUND(IF(Z35<>"",IFERROR(VLOOKUP(Z35,importar!$C$2:'importar'!$D$100,2,FALSE),0),0),-3) -> 0 | AJ35: =AT34+1 -> 109 | AK35: =ROUND(IF(AJ35<>"",IFERROR(VLOOKUP(AJ35,importar!$E$2:'importar'!$F$100,2,FALSE),0),0),-3) -> 0 | AT35: =AJ36+1 -> 111 | AU35: =ROUND(IF(AT35<>"",IFERROR(VLOOKUP(AT35,importar!$G$2:'importar'!$H$100,2,FALSE),0),0),-3) -> 0
C36: Pagos o abonos en cuenta al exterior a países con convenio vigente | P36: =P35+1 -> 56 | Q36: =ROUND(IF(P36<>"",IFERROR(VLOOKUP(P36,importar!$A$2:'importar'!$B$100,2,FALSE),0),0),-3) -> 0 | Z36: =Z35+1 -> 58 | AA36: =ROUND(IF(Z36<>"",IFERROR(VLOOKUP(Z36,importar!$C$2:'importar'!$D$100,2,FALSE),0),0),-3) -> 0 | AJ36: =AJ35+1 -> 110 | AK36: =ROUND(IF(AJ36<>"",IFERROR(VLOOKUP(AJ36,importar!$E$2:'importar'!$F$100,2,FALSE),0),0),-3) -> 0 | AT36: =AT35+1 -> 112 | AU36: =ROUND(IF(AT36<>"",IFERROR(VLOOKUP(AT36,importar!$G$2:'importar'!$H$100,2,FALSE),0),0),-3) -> 0
B37: Autorretenciones | C37: Contribuyentes exonerados de aportes (art. 114 -1 E.T.) | P37: =Z36+1 -> 59 | Q37: =ROUND(IF(P37<>"",IFERROR(VLOOKUP(P37,importar!$A$2:'importar'!$B$100,2,FALSE),0),0),-3) -> 0 | Z37: =P45+1 -> 68 | AA37: =ROUND(IF(Z37<>"",IFERROR(VLOOKUP(Z37,importar!$C$2:'importar'!$D$100,2,FALSE),0),0),-3) -> 0
C38: Ventas | P38: =P37+1 -> 60 | Q38: =ROUND(IF(P38<>"",IFERROR(VLOOKUP(P38,importar!$A$2:'importar'!$B$100,2,FALSE),0),0),-3) -> 0 | Z38: =Z37+1 -> 69 | AA38: =ROUND(IF(Z38<>"",IFERROR(VLOOKUP(Z38,importar!$C$2:'importar'!$D$100,2,FALSE),0),0),-3) -> 0 | AJ38: =AT36+1 -> 113 | AK38: =ROUND(IF(AJ38<>"",IFERROR(VLOOKUP(AJ38,importar!$E$2:'importar'!$F$100,2,FALSE),0),0),-3) -> 0 | AT38: =AJ45+1 -> 121 | AU38: =ROUND(IF(AT38<>"",IFERROR(VLOOKUP(AT38,importar!$G$2:'importar'!$H$100,2,FALSE),0),0),-3) -> 0
C39: Honorarios | P39: 61 | Q39: =ROUND(IF(P39<>"",IFERROR(VLOOKUP(P39,importar!$A$2:'importar'!$B$100,2,FALSE),0),0),-3) -> 0 | Z39: 70 | AA39: =ROUND(IF(Z39<>"",IFERROR(VLOOKUP(Z39,importar!$C$2:'importar'!$D$100,2,FALSE),0),0),-3) -> 0 | AJ39: =AJ38+1 -> 114 | AK39: =ROUND(IF(AJ39<>"",IFERROR(VLOOKUP(AJ39,importar!$E$2:'importar'!$F$100,2,FALSE),0),0),-3) -> 0 | AT39: =AT38+1 -> 122 | AU39: =ROUND(IF(AT39<>"",IFERROR(VLOOKUP(AT39,importar!$G$2:'importar'!$H$100,2,FALSE),0),0),-3) -> 0
C40: Comisiones | P40: 62 | Q40: =ROUND(IF(P40<>"",IFERROR(VLOOKUP(P40,importar!$A$2:'importar'!$B$100,2,FALSE),0),0),-3) -> 0 | Z40: 71 | AA40: =ROUND(IF(Z40<>"",IFERROR(VLOOKUP(Z40,importar!$C$2:'importar'!$D$100,2,FALSE),0),0),-3) -> 0 | AJ40: 115 | AK40: =ROUND(IF(AJ40<>"",IFERROR(VLOOKUP(AJ40,importar!$E$2:'importar'!$F$100,2,FALSE),0),0),-3) -> 0 | AT40: 123 | AU40: =ROUND(IF(AT40<>"",IFERROR(VLOOKUP(AT40,importar!$G$2:'importar'!$H$100,2,FALSE),0),0),-3) -> 0
C41: Servicios | P41: 63 | Q41: =ROUND(IF(P41<>"",IFERROR(VLOOKUP(P41,importar!$A$2:'importar'!$B$100,2,FALSE),0),0),-3) -> 0 | Z41: 72 | AA41: =ROUND(IF(Z41<>"",IFERROR(VLOOKUP(Z41,importar!$C$2:'importar'!$D$100,2,FALSE),0),0),-3) -> 0 | AJ41: 116 | AK41: =ROUND(IF(AJ41<>"",IFERROR(VLOOKUP(AJ41,importar!$E$2:'importar'!$F$100,2,FALSE),0),0),-3) -> 0 | AT41: 124 | AU41: =ROUND(IF(AT41<>"",IFERROR(VLOOKUP(AT41,importar!$G$2:'importar'!$H$100,2,FALSE),0),0),-3) -> 0
C42: Rendimientos financieros | P42: 64 | Q42: =ROUND(IF(P42<>"",IFERROR(VLOOKUP(P42,importar!$A$2:'importar'!$B$100,2,FALSE),0),0),-3) -> 0 | Z42: 73 | AA42: =ROUND(IF(Z42<>"",IFERROR(VLOOKUP(Z42,importar!$C$2:'importar'!$D$100,2,FALSE),0),0),-3) -> 0 | AJ42: 117 | AK42: =ROUND(IF(AJ42<>"",IFERROR(VLOOKUP(AJ42,importar!$E$2:'importar'!$F$100,2,FALSE),0),0),-3) -> 0 | AT42: 125 | AU42: =ROUND(IF(AT42<>"",IFERROR(VLOOKUP(AT42,importar!$G$2:'importar'!$H$100,2,FALSE),0),0),-3) -> 0
C43: Pagos mensuales provisionales de carácter voluntario (hidrocarburos y demás productos mineros) | P43: 65 | Q43: =ROUND(IF(P43<>"",IFERROR(VLOOKUP(P43,importar!$A$2:'importar'!$B$100,2,FALSE),0),0),-3) -> 0 | Z43: 74 | AA43: =ROUND(IF(Z43<>"",IFERROR(VLOOKUP(Z43,importar!$C$2:'importar'!$D$100,2,FALSE),0),0),-3) -> 0 | AJ43: 118 | AK43: =ROUND(IF(AJ43<>"",IFERROR(VLOOKUP(AJ43,importar!$E$2:'importar'!$F$100,2,FALSE),0),0),-3) -> 0 | AT43: 126 | AU43: =ROUND(IF(AT43<>"",IFERROR(VLOOKUP(AT43,importar!$G$2:'importar'!$H$100,2,FALSE),0),0),-3) -> 0
C44: Exportación de hidrocarburos, carbón y demás productos mineros | P44: 66 | Q44: =ROUND(IF(P44<>"",IFERROR(VLOOKUP(P44,importar!$A$2:'importar'!$B$100,2,FALSE),0),0),-3) -> 0 | Z44: 75 | AA44: =ROUND(IF(Z44<>"",IFERROR(VLOOKUP(Z44,importar!$C$2:'importar'!$D$100,2,FALSE),0),0),-3) -> 0 | AJ44: 119 | AK44: =ROUND(IF(AJ44<>"",IFERROR(VLOOKUP(AJ44,importar!$E$2:'importar'!$F$100,2,FALSE),0),0),-3) -> 0 | AT44: 127 | AU44: =ROUND(IF(AT44<>"",IFERROR(VLOOKUP(AT44,importar!$G$2:'importar'!$H$100,2,FALSE),0),0),-3) -> 0
C45: Otros conceptos | P45: 67 | Q45: =ROUND(IF(P45<>"",IFERROR(VLOOKUP(P45,importar!$A$2:'importar'!$B$100,2,FALSE),0),0),-3) -> 0 | Z45: 76 | AA45: =ROUND(IF(Z45<>"",IFERROR(VLOOKUP(Z45,importar!$C$2:'importar'!$D$100,2,FALSE),0),0),-3) -> 0 | AJ45: 120 | AK45: =ROUND(IF(AJ45<>"",IFERROR(VLOOKUP(AJ45,importar!$E$2:'importar'!$F$100,2,FALSE),0),0),-3) -> 0 | AT45: 128 | AU45: =ROUND(IF(AT45<>"",IFERROR(VLOOKUP(AT45,importar!$G$2:'importar'!$H$100,2,FALSE),0),0),-3) -> 0
B46: Menos retenciones practicadas en exceso o indebidas o por operaciones anuladas, rescindidas o resueltas. | AT46: 129 | AU46: =ROUND(IF(AT46<>"",IFERROR(VLOOKUP(AT46,importar!$G$2:'importar'!$H$100,2,FALSE),0),0),-3) -> 0
B47: Total retenciones renta y complementario | AT47: 130 | AU47: =ROUND(SUM(AA21:AI30,AA32:AI45,AU19:BC36,AU38:BC45)-AU46,-3) -> 0
B48: Retenciones practicadas por otros impuestos
B49: A título de IVA | C49: A responsables del impuesto sobre las ventas | AT49: =AT47+1 -> 131 | AU49: 0
C50: Practicadas por servicios a no residentes o no domiciliados | AT50: =AT49+1 -> 132 | AU50: 0
C51: Menos retenciones practicadas en exceso o indebidas o por operaciones anuladas, rescindidas o resueltas | AT51: 133 | AU51: 0
C52: Total retenciones IVA | AT52: 134 | AU52: =ROUND(AU49+AU50-AU51,-3) -> 0
B53: Retenciones impuesto de timbre nacional | AT53: 135 | AU53: 0
B54: Total | C54: Total retenciones | AT54: 136 | AU54: =ROUND(AU47+AU52+AU53,-3) -> 0
C55: Sanciones | AT55: 137 | AU55: =ROUND(IF(Sanciones!C4="SI",Sanciones!C20,0)+IF(Sanciones!C5="SI",Sanciones!C149,0),-3) -> 0
C56: Total retenciones más sanciones | AT56: 138 | AU56: =ROUND(AU54+AU55,-3) -> 0
B57: 139. No. Identificación signatario | V57: 140. DV
B58: 981.Cód. Representación | Q58: 997. Espacio exclusivo para el Sello de la entidad recaudadora
B59: Firma del declarante o de quien lo representa | Q59: (Fecha efectiva de la transacción) | AI59: 980. Pago Total | AR59: $ | AS59: =+AU56 -> 0
B61: 982. Código Contador o Revisor Fiscal | AI61: 996. Espacio para el número interno de la DIAN / Adhesivo
B62: Firma Contador o Revisor Fiscal. 994. Con salvedades
Q63: Coloque el timbre de la máquina
B64: 983. No. Tarjeta profesional | Q64: registradora al dorso de este formulario

Sheet Formulario 350 (H2)
L2: Declaración Retenciones en la Fuente | AQ2: Privada
B6: Espacio reservado para la DIAN | AB6: 4. Número de Formulario
B10: Las celdas coloreadas de azul contienen fórmulas y NO son diligenciables
C11: 141. A países | K11: 142. Concepto de pago | O11: 143. Tipo de persona | T11: 144. País | AC11: Cód | AF11: 145. Pagos o abonos en cuenta | AR11: 146.Tarifa (%) | AT11: 147. Valor retención
B12: 1 | C12: CON CONVENIO | K12: 32. Venta y/o servicios por Presencia Económica Significativa - PES | O12: Personas jurídicas | T12: =IFERROR(VLOOKUP(AC12,[24]Listas!F503:G748,2,0),"") -> BULGARIA | AC12: 111 | AF12: 0 | AR12: 0% | AT12: =ROUND(AF12*AR12,-3) -> 0
B13: 2 | C13: SIN CONVENIO | K13: 15. Venta y/o servicios por Presencia Económica Significativa - PES | O13: Personas naturales | T13: =IFERROR(VLOOKUP(AC13,[24]Listas!F504:G749,2,0),"") -> CHILE | AC13: 211 | AF13: 0 | AR13: 0% | AT13: 0
B14: 3 | C14: SIN CONVENIO | K14: 15. Venta y/o servicios por Presencia Económica Significativa - PES | O14: Personas jurídicas | T14: =IFERROR(VLOOKUP(AC14,[24]Listas!F505:G750,2,0),"") -> CIUDAD DEL VATICANO | AC14: 159 | AF14: 0 | AR14: 0% | AT14: 0
B15: 4 | C15: CON CONVENIO | K15: 32. Venta y/o servicios por Presencia Económica Significativa - PES | O15: Personas naturales | T15: =IFERROR(VLOOKUP(AC15,[24]Listas!F506:G751,2,0),"") -> GRECIA | AC15: 301 | AF15: 0 | AR15: 0% | AT15: 0
B16: 5 | C16: CON CONVENIO | O16: Personas jurídicas | T16: =IFERROR(VLOOKUP(AC16,[24]Listas!F507:G752,2,0),"") ->  | AF16: 0 | AR16: 0% | AT16: 0
B17: 6 | C17: CON CONVENIO | O17: Personas jurídicas | T17: =IFERROR(VLOOKUP(AC17,[24]Listas!F508:G753,2,0),"") ->  | AF17: 0 | AR17: 0% | AT17: 0
B18: 7 | C18: CON CONVENIO | O18: Personas jurídicas | T18: =IFERROR(VLOOKUP(AC18,[24]Listas!F509:G754,2,0),"") ->  | AF18: 0 | AR18: 0% | AT18: 0
B19: 8 | C19: CON CONVENIO | O19: Personas jurídicas | T19: =IFERROR(VLOOKUP(AC19,[24]Listas!F510:G755,2,0),"") ->  | AF19: 0 | AR19: 0% | AT19: 0
B20: 9 | C20: CON CONVENIO | O20: Personas jurídicas | T20: =IFERROR(VLOOKUP(AC20,[24]Listas!F511:G756,2,0),"") ->  | AF20: 0 | AR20: 0% | AT20: 0
B21: 10 | C21: CON CONVENIO | O21: Personas jurídicas | T21: =IFERROR(VLOOKUP(AC21,[24]Listas!F512:G757,2,0),"") ->  | AF21: 0 | AR21: 0% | AT21: 0
B22: 11 | C22: CON CONVENIO | O22: Personas jurídicas | T22: =IFERROR(VLOOKUP(AC22,[24]Listas!F513:G758,2,0),"") ->  | AF22: 0 | AR22: 0% | AT22: 0
B23: 12 | C23: CON CONVENIO | O23: Personas jurídicas | T23: =IFERROR(VLOOKUP(AC23,[24]Listas!F514:G759,2,0),"") ->  | AF23: 0 | AR23: 0% | AT23: 0
B24: 13 | C24: CON CONVENIO | O24: Personas jurídicas | T24: =IFERROR(VLOOKUP(AC24,[24]Listas!F515:G760,2,0),"") ->  | AF24: 0 | AR24: 0% | AT24: 0
B25: 14 | C25: CON CONVENIO | O25: Personas jurídicas | T25: =IFERROR(VLOOKUP(AC25,[24]Listas!F516:G761,2,0),"") ->  | AF25: 0 | AR25: 0% | AT25: 0
B26: 15 | C26: CON CONVENIO | O26: Personas jurídicas | T26: =IFERROR(VLOOKUP(AC26,[24]Listas!F517:G762,2,0),"") ->  | AF26: 0 | AR26: 0% | AT26: 0
B27: 16 | C27: CON CONVENIO | O27: Personas jurídicas | T27: =IFERROR(VLOOKUP(AC27,[24]Listas!F518:G763,2,0),"") ->  | AF27: 0 | AR27: 0% | AT27: 0
B28: 17 | C28: CON CONVENIO | O28: Personas jurídicas | T28: =IFERROR(VLOOKUP(AC28,[24]Listas!F519:G764,2,0),"") ->  | AF28: 0 | AR28: 0% | AT28: 0
B29: 18 | C29: CON CONVENIO | O29: Personas jurídicas | T29: =IFERROR(VLOOKUP(AC29,[24]Listas!F520:G765,2,0),"") ->  | AF29: 0 | AR29: 0% | AT29: 0
B30: 19 | C30: CON CONVENIO | O30: Personas jurídicas | T30: =IFERROR(VLOOKUP(AC30,[24]Listas!F521:G766,2,0),"") ->  | AF30: 0 | AR30: 0% | AT30: 0
B31: 20 | C31: CON CONVENIO | O31: Personas jurídicas | T31: =IFERROR(VLOOKUP(AC31,[24]Listas!F522:G767,2,0),"") ->  | AF31: 0 | AR31: 0% | AT31: 0
B32: 21 | C32: CON CONVENIO | O32: Personas jurídicas | T32: =IFERROR(VLOOKUP(AC32,[24]Listas!F523:G768,2,0),"") ->  | AF32: 0 | AR32: 0% | AT32: 0
B33: 22 | C33: CON CONVENIO | O33: Personas jurídicas | T33: =IFERROR(VLOOKUP(AC33,[24]Listas!F524:G769,2,0),"") ->  | AF33: 0 | AR33: 0% | AT33: 0
B34: 23 | C34: CON CONVENIO | O34: Personas jurídicas | T34: =IFERROR(VLOOKUP(AC34,[24]Listas!F525:G770,2,0),"") ->  | AF34: 0 | AR34: 0% | AT34: 0
B35: 24 | C35: CON CONVENIO | O35: Personas jurídicas | T35: =IFERROR(VLOOKUP(AC35,[24]Listas!F526:G771,2,0),"") ->  | AF35: 0 | AR35: 0% | AT35: 0
B36: 25 | C36: CON CONVENIO | O36: Personas jurídicas | T36: =IFERROR(VLOOKUP(AC36,[24]Listas!F527:G772,2,0),"") ->  | AF36: 0 | AR36: 0% | AT36: 0
B37: 26 | C37: CON CONVENIO | O37: Personas jurídicas | T37: =IFERROR(VLOOKUP(AC37,[24]Listas!F528:G773,2,0),"") ->  | AF37: 0 | AR37: 0% | AT37: 0
B38: 27 | C38: CON CONVENIO | O38: Personas jurídicas | T38: =IFERROR(VLOOKUP(AC38,[24]Listas!F529:G774,2,0),"") ->  | AF38: 0 | AR38: 0% | AT38: 0
B39: 28 | C39: CON CONVENIO | O39: Personas jurídicas | T39: =IFERROR(VLOOKUP(AC39,[24]Listas!F530:G775,2,0),"") ->  | AF39: 0 | AR39: 0% | AT39: 0
B40: 29 | C40: CON CONVENIO | O40: Personas jurídicas | T40: =IFERROR(VLOOKUP(AC40,[24]Listas!F531:G776,2,0),"") ->  | AF40: 0 | AR40: 0% | AT40: 0
B41: 30 | C41: CON CONVENIO | O41: Personas jurídicas | T41: =IFERROR(VLOOKUP(AC41,[24]Listas!F532:G777,2,0),"") ->  | AF41: 0 | AR41: 0% | AT41: 0
B42: 31 | C42: CON CONVENIO | O42: Personas jurídicas | T42: =IFERROR(VLOOKUP(AC42,[24]Listas!F533:G778,2,0),"") ->  | AF42: 0 | AR42: 0% | AT42: 0
B43: 32 | C43: CON CONVENIO | O43: Personas jurídicas | T43: =IFERROR(VLOOKUP(AC43,[24]Listas!F534:G779,2,0),"") ->  | AF43: 0 | AR43: 0% | AT43: 0
B44: 33 | C44: CON CONVENIO | O44: Personas jurídicas | T44: =IFERROR(VLOOKUP(AC44,[24]Listas!F535:G780,2,0),"") ->  | AF44: 0 | AR44: 0% | AT44: 0
B45: 34 | C45: CON CONVENIO | O45: Personas jurídicas | T45: =IFERROR(VLOOKUP(AC45,[24]Listas!F536:G781,2,0),"") ->  | AF45: 0 | AR45: 0% | AT45: 0
B46: 35 | C46: CON CONVENIO | O46: Personas jurídicas | T46: =IFERROR(VLOOKUP(AC46,[24]Listas!F537:G782,2,0),"") ->  | AF46: 0 | AR46: 0% | AT46: 0
B47: 36 | C47: CON CONVENIO | O47: Personas jurídicas | T47: =IFERROR(VLOOKUP(AC47,[24]Listas!F538:G783,2,0),"") ->  | AF47: 0 | AR47: 0% | AT47: 0
B48: 37 | C48: CON CONVENIO | O48: Personas jurídicas | T48: =IFERROR(VLOOKUP(AC48,[24]Listas!F539:G784,2,0),"") ->  | AF48: 0 | AR48: 0% | AT48: 0
B49: 38 | C49: CON CONVENIO | O49: Personas jurídicas | T49: =IFERROR(VLOOKUP(AC49,[24]Listas!F540:G785,2,0),"") ->  | AF49: 0 | AR49: 0% | AT49: 0
B50: 39 | C50: CON CONVENIO | O50: Personas jurídicas | T50: =IFERROR(VLOOKUP(AC50,[24]Listas!F541:G786,2,0),"") ->  | AF50: 0 | AR50: 0% | AT50: 0
B51: 40 | C51: CON CONVENIO | O51: Personas jurídicas | T51: =IFERROR(VLOOKUP(AC51,[24]Listas!F542:G787,2,0),"") ->  | AF51: 0 | AR51: 0% | AT51: 0
B52: 41 | C52: CON CONVENIO | O52: Personas jurídicas | T52: =IFERROR(VLOOKUP(AC52,[24]Listas!F543:G788,2,0),"") ->  | AF52: 0 | AR52: 0% | AT52: 0
B53: 42 | C53: CON CONVENIO | O53: Personas jurídicas | T53: =IFERROR(VLOOKUP(AC53,[24]Listas!F544:G789,2,0),"") ->  | AF53: 0 | AR53: 0% | AT53: 0
B54: 43 | C54: CON CONVENIO | O54: Personas jurídicas | T54: =IFERROR(VLOOKUP(AC54,[24]Listas!F545:G790,2,0),"") ->  | AF54: 0 | AR54: 0% | AT54: 0
B55: 44 | C55: CON CONVENIO | O55: Personas jurídicas | T55: =IFERROR(VLOOKUP(AC55,[24]Listas!F546:G791,2,0),"") ->  | AF55: 0 | AR55: 0% | AT55: 0
B56: 45 | C56: CON CONVENIO | O56: Personas jurídicas | T56: =IFERROR(VLOOKUP(AC56,[24]Listas!F547:G792,2,0),"") ->  | AF56: 0 | AR56: 0% | AT56: 0
B57: Total pagos al exterior | C57: Sin convenio persona jurídica | AC57: 148 | AD57: =SUMIFS($AF$12:$AF$56,$C$12:$C$56,[24]Listas!B39,$O$12:$O$56,[24]Listas!A39) -> 0 | AR57: 150 | AS57: =SUMIFS($AT$12:$AT$56,$C$12:$C$56,[24]Listas!B39,$O$12:$O$56,[24]Listas!A39) -> 0
C58: Sin convenio persona natural | AC58: 149 | AD58: =SUMIFS($AF$12:$AF$56,$C$12:$C$56,[24]Listas!B39,$O$12:$O$56,[24]Listas!A40) -> 0 | AR58: 151 | AS58: =SUMIFS($AT$12:$AT$56,$C$12:$C$56,[24]Listas!B39,$O$12:$O$56,[24]Listas!A40) -> 0
C59: Con convenio persona jurídica | AC59: 152 | AD59: =SUMIFS($AF$12:$AF$56,$C$12:$C$56,[24]Listas!B40,$O$12:$O$56,[24]Listas!A39) -> 0 | AR59: 154 | AS59: =SUMIFS($AT$12:$AT$56,$C$12:$C$56,[24]Listas!B40,$O$12:$O$56,[24]Listas!A39) -> 0
C60: Con convenio persona natural | AC60: 153 | AD60: =SUMIFS($AF$12:$AF$56,$C$12:$C$56,[24]Listas!B40,$O$12:$O$56,[24]Listas!A40) -> 0 | AR60: 155 | AS60: =SUMIFS($AT$12:$AT$56,$C$12:$C$56,[24]Listas!B40,$O$12:$O$56,[24]Listas!A40) -> 0

Sheet Sanciones
B1: S A N C I O N E S | WW1: x | WX1: 2025-01-25 | XFD1: 2021-09-10
D2: =IF(B508=1,"<<Descargue la versión más actualizada de esta herramienta","") -> <<Descargue la versión más actualizada de esta herramienta | WW2: x
B3: Responder las siguientes preguntas: | WW3: x
B4: ¿ Calcula sanción por extemporaneidad? | C4: NO | WW4: x
B5: ¿Calcula sanción por corrección? | C5: NO
B6: Liquidación de la sanción por extemporaneidad (Art. 641 y 642 del Estatuto tributario)
B8: Fecha en que venció la declaración | C8: 2024-08-12 | D8: =IF(C8="","Digite la información","") -> 
B9: Fecha en que va a presentar o presentó la declaración | C9: 2024-10-03 | D9: =IF(C9="","Digite la información","") -> 
B10: Existe Emplazamiento? | C10: NO | D10: =IF(C10="","Digite la información","") -> 
B11: Impuesto a cargo o retención objeto de la declaración | C11: =+'Formulario 350'!AU47 -> $ 0 | D11: =IF(C11="","Digite la información o digite cero","") -> 
B12: Ingresos brutos percibidos por el declarante en el período objeto de declaración | C12: $ 0 | D12: =IF(C12="","Digite la información o digite cero","") -> 
B13: Saldo a favor | C13: $ 0 | D13: =IF(C13="","Digite la información o digite cero","") -> 
B14: Patrimonio líquido del año inmediatamente anterior al gravable | C14: $ 0 | D14: =IF(C14="","Digite la información o digite cero","") -> 
B15: Valor UVT | C15: $ 47,065 | D15: =IF(C15="","Digite la información","") -> 
B16: Sanción mínima | C16: $ 471,000 | D16: =IF(C16="","Digite la información","") -> 
B17: Mes y/o fracción de mes | C17: =IF(C9-C8>0,ROUNDUP((DAYS360(C8,C9))/30,0),0) -> 2
B18: Sanción por extemporaneidad Subtotal | C18: =ROUND(C100,-3) -> $ 471,000
B19: Aplicación de la reducción de la sanción según el artículo 640 del ET | C19: 0%
B20: Sanción por extemporaneidad liquidada | C20: =MAX(C101:C102) -> $ 471,000
B22: ¿Aplica la reducción de la sanción según el artículo 93 Ley 2277 de 2022?
C23: =+C16 -> $ 471,000
C24: =IF(C22="",C20,C20*C22) -> $ 471,000
B26: Sanción por extemporaneidad liquidada con reducción art. 93 ley 2277 de 2022 | C26: =MAX(C23:C24) -> $ 471,000 | D26: =IF(C26=C16,"Sanción mínima","") -> Sanción mínima
B33: CALCULOS
B35: Sación por extemporaneidad
B36: Impuesto a Cargo
B37: SANCIÓN 5% ANTES DE EMPLAZAMIENTO | C37: =(C11*C108*C17) -> 0
B38: SANCIÓN 10% DESPUES DE EMPLAZAMIENTO | C38: =(C11*C109*C17) -> 0
B39: CALCULO SUBTOTAL | C39: =IF(C10="si",C38,C37) -> 0
B40: LIMITE 100% IMPUESTO A CARGO | C40: =+C11 -> 0
B41: LIMITE 200% IMPUESTO A CARGO | C41: =+C11*2 -> 0
B42: CALCULO SANCIÓN (SUBTOTAL) | C42: =IF(C10="si",MIN(C39,C41),MIN(C39:C40)) -> 0
B44: Por ingresos
B45: SANCIÓN 0.5% ANTES DE EMPLAZAMIENTO | C45: =(C12*C110*C17) -> 0
B46: SANCIÓN 1% DESPUES DE EMPLAZAMIENTO | C46: =(C12*C111*C17) -> 0
B48: LIMITE 5% DE LOS INGRESOS ANTES DE EMPLAZAMIENTO | C48: =+C12*C114 -> 0
B49: LIMITE UVT 2500 UVT ANTES DE EMPLAZAMIENTO | C49: =C116*C15 -> 117,662,500
B50: DOBLE DEL SALDO A FAVOR ANTES DE EMPLAZAMIENTO | C50: =+C13*2 -> 0
B51: MENOR ENTRE ESTOS TRES | C51: =IF(C50>0,MIN(C48:C50),MIN(C48:C49)) -> 0
B54: LIMITE 10% DE LOS INGRESOS DESPUES DE EMPLAZAMIENTO | C54: =+C12*C115 -> 0
B55: LIMITE UVT 5000 UVT DESPUES DE EMPLAZAMIENTO | C55: =C117*C15 -> 235,325,000
B56: CUATRO VECES DEL SALDO A FAVOR DESPUES DE EMPLAZAMIENTO | C56: =+C13*4 -> 0
B57: MENOR ENTRE ESTOS TRES | C57: =IF(C56>0,MIN(C54:C56),MIN(C54:C55)) -> 0
B60: CALCULO SANCIÓN (SUBTOTAL) ANTES DE EMPLAZAMIENTO | C60: =IF(C10="no",C45,0) -> 0
B61: CALCULO SANCIÓN (ANTES DE EMPLAZAMIENTO | C61: =IF(C60>C51,C51,C60) -> 0
B63: CALCULO SANCIÓN (SUBTOTAL) DESPUES DE EMPLAZAMIENTO | C63: =IF(C10="si",C46,0) -> 0
B64: CALCULO SANCIÓN DESPUES DE EMPLAZAMIENTO | C64: =IF(C63>C57,C57,C63) -> 0
B66: SANCIÓN A APLICAR SUBTOTAL POR INGRESOS | C66: =IF(C61>C64,C61,C64) -> 0
B68: Por patrimonio
B69: SANCIÓN 1% ANTES DE EMPLAZAMIENTO | C69: =($C$14*C112*$C$17) -> 0
B70: SANCIÓN 2% DESPUES DE EMPLAZAMIENTO | C70: =($C$14*C113*$C$17) -> 0
B72: LIMITE 10% DEL PATRIMONIO ANTES DE EMPLAZAMIENTO | C72: =+C14*10% -> 0
B73: LIMITE UVT 2500 UVT ANTES DE EMPLAZAMIENTO | C73: =C116*C15 -> 117,662,500
B74: DOBLE DEL SALDO A FAVOR ANTES DE EMPLAZAMIENTO | C74: =+C13*2 -> 0
B75: MENOR ENTRE ESTOS TRES | C75: =IF(C74>0,MIN(C72:C74),MIN(C72:C73)) -> 0
B78: LIMITE 20% DEL PATRIMONIO DESPUES DE EMPLAZAMIENTO | C78: =+C14*0.2 -> 0
B79: LIMITE UVT 5000 UVT DESPUES DE EMPLAZAMIENTO | C79: =C117*C15 -> 235,325,000
B80: CUATRO VECES DEL SALDO A FAVOR DESPUES DE EMPLAZAMIENTO | C80: =+C13*4 -> 0
B81: MENOR ENTRE ESTOS TRES | C81: =IF(C80>0,MIN(C78:C80),MIN(C78:C79)) -> 0
B84: CALCULO SANCIÓN (SUBTOTAL) ANTES DE EMPLAZAMIENTO | C84: =IF(C10="no",C69,0) -> 0
B85: CALCULO SANCIÓN (ANTES DE EMPLAZAMIENTO | C85: =IF(C84>C75,C75,C84) -> 0
B87: CALCULO SANCIÓN (SUBTOTAL) DESPUES DE EMPLAZAMIENTO | C87: =IF(C10="si",C70,0) -> 0
B88: CALCULO SANCIÓN DESPUES DE EMPLAZAMIENTO | C88: =IF(C87>C81,C81,C87) -> 0
B90: SANCIÓN A APLICAR POR PATRIMONIO SUBTOTAL | C90: =IF(C85>C88,C85,C88) -> 0
B93: RESUMEN DE SANCIONES
B94: SANCIÓN MINIMA | C94: =+C16 -> 471,000
B95: SANCIÓN POR IMPUESTO A CARGO | C95: =IF(C11>0,C42,0) -> 0
B96: SANCIÓN POR INGRESOS | C96: =IF(C11=0,C66,0) -> 0
B97: SANCIÓN POR PATRIMONIO | C97: =IF(AND(C11=0,AND(C12=0)),C90,0) -> 0
B98: SANCION SUBTOTAL A APLICAR | C98: =MAX(C95:C97) -> 0
B99: SANCION ANTES DE APLICACIÓN | C99: =IF(C98>C94,C98,C94) -> 471,000
B100: SANCION A APLICAR SEGÚN DILIGENCIAMIENTO DE FECHAS | C100: =IF(C17=0,0,C99) -> 471,000
B101: SANCIÓN MINIMA | C101: =+C16 -> 471,000
B102: SANCIÓN REDUCIDA ART 640 | C102: =IF(C19=0%,C100,C100*C19) -> 471,000
B106: CIFRAS Y % CLACULOS SANCIÓN POR EXTEMPORANEIDAD
B107: Sanción por extemporaneidad
B108: Tarifa por mes o fraccion de mes sin emplazamiento | C108: 5%
B109: Tarifa por mes o fracción de mes con emplazamiento | C109: 10%
B110: Tarifa de los ingresos antes de emplazamiento | C110: 0.5%
B111: Tarifa de los ingresos despues de emplazamiento | C111: 1%
B112: Tarifa por patrimonio antes de emplezamiento | C112: 1%
B113: Tarifa por patrimonio despues de emplezamiento | C113: 2%
B114: Limitante Ingresos antes de emplazamiento | C114: 5%
B115: Limitante Ingresos despues de emplazamiento | C115: 10%
B116: Limitante 2500 UVT antes de emplazamiento | C116: 2,500
B117: Limitante 5000 UVT despues de emplazamiento | C117: 5,000
B118: Tarifa limitante | C118: 10%
B119: Antes o despuesta de emplazamiento | C119: SI
B120: Antes o despuesta de emplazamiento | C120: NO
B121: Aplicación del artículo 640 del ET | C121: 0%
B122: Aplicación del artículo 640 del ET | C122: 50%
B123: Aplicación del artículo 640 del ET | C123: 75%
B133: Liquidación sanción por corrección (Art. 644 del Estatuto tributario)
B134: (Aumento del valor a pagar o disminución del saldo a favor) | C134: $ 471,000
B137: Impuesto a pagar en la declaración inicial | C137: $ 0
B138: Impuesto a pagar en la declaración de corrección | C138: $ 0
B139: Saldo a favor en la declaración inicial | C139: $ 0
B140: Saldo a favor en la declaración de corrección | C140: $ 0
A141: 40% | B141: ¿La declaración se corrige después de la notificación de un emplazamiento para corregir o de auto que ordene inspección tributaria y antes que le notifiquen requerimiento especial o pliego de cargos? | C141: NO
A142: 20% | B142: La declaración inicial se presentó de forma extemporánea? | C142: NO
A143: 0% | B143: Fecha de presentación de la declaración inicial
B144: Fecha de vencimiento legal del plazo para declarar de la declaración inicial
B145: Mes y/o fracción de mes | C145: =IF(C143-C144>0,ROUNDUP((DAYS360(C144,C143))/30,0),0) -> 0
B146: Sanción mínima | C146: =IF(AND(C139>1,C140>C139),0,C134) -> $ 471,000
B147: Sanción por corrección Subtotal | C147: =ROUND(C173,-3) -> $ 471,000
B148: Aplicación de la reducción de la sanción según el artículo 640 del ET | C148: 0%
B149: Sanción por corrección liquidada | C149: =MAX(C174:C175) -> $ 471,000
B156: CALCULOS
B157: SANCION POR CORRECCIÓN
B158: DIFERENCIA DEL SALDO A PAGAR | C158: =IF(C137<C138,C138-C137+C139,0) -> 0
B159: DIFERENCIA DEL SALDO A FAVOR | C159: =IF(C140<C139,C139-C140,0) -> 0
B160: SANCIÓN POR CORRECCION SALDO A PAGAR | C160: =IF(C141="NO",C158*C180,C158*C181) -> 0
B161: SANCIÓN POR CORRECIÓN SALDO A FAVOR | C161: =IF(C141="NO",C159*C180,C159*C181) -> 0
B162: SANCION A APLICAR SUBTOTAL | C162: =MAX(C160:C161) -> 0
B163: SANCIÓN ADICIONAL CUANDO LA INICIAL ES EXTEMPORANEA SALDO A PAGAR | C163: =(C158*5%)*C145 -> 0
B164: SANCIÓN ADICIONAL CUANDO LA INICIAL ES EXTEMPORANEA SALDO A FAVOR | C164: =(C159*5%)*C145 -> 0
B165: SANCION ADICIONAL A APLICAR SUBTOTAL | C165: =MAX(C163:C164) -> 0
B166: SANCION INICIAL MAS ADICIONAL CUANDO INICIAL ES EXTEMPORANEA | C166: =IF(C142="SI",(C162+C165),C162) -> 0
B167: LIMITANTE 100% DEL MAYOR VALOR A PAGAR | C167: =+C158 -> 0
B168: LIMITANTE 100% DEL MENOR SALDO A FAVOR | C168: =+C159 -> 0
B169: LIMITANTE SUBTOTAL | C169: =MAX(C167:C168) -> 0
B170: SANCIÓN A APLICAR ANTES DE MINIMA | C170: =IF(C166<C169,C166,C169) -> 0
B171: SANCIÓN MINIMA | C171: =+C146 -> 471,000
B172: SANCIÓN A DECLARAR | C172: =IF(C170<C171,C171,C170) -> 471,000
B173: SANCIÓN A DECLARAR | C173: =+C172 -> 471,000
B174: SANCIÓN MINIMA | C174: =+C146 -> 471,000
B175: SANCIÓN REDUCIDA ART 640 | C175: =IF(C148=0%,C173,C173*C148) -> 471,000
B178: SANCIONES
B179: Sanción por corrección
B180: Tarifa sanción por corrección | C180: 10%
B181: Tarifa sanción por corrección despues de emplazamiento para corregir o o auto de inspección tributaria | C181: 20%
B182: Tarifa adicional cuando la declaracion inicial de presentó extemporaneamente | C182: 5%
B183: LISTA | C183: SI
B184: LISTA | C184: NO
B185: Aplicación del artículo 640 del ET | C185: 0%
B186: Aplicación del artículo 640 del ET | C186: 50%
B187: Aplicación del artículo 640 del ET | C187: 75%
B506: =TODAY() -> 2025-08-21
B507: =+WX1 -> 2025-01-25
B508: =IF(B506>B507,1,0) -> 1
F19921: x
